bitfinex-derivatives/quotes_ETHF0:USTF0_20230104
["timestamp","ask_amount","ask_price","bid_price","bid_amount"]
[1672849271964,14.16687335,1254.7,1254.6,1.19093751]
[1672849272166,14.16599702,1254.7,1254.6,1.19093751]
[1672849272380,11.181,1254.7,1254.6,1.19093751]
[1672849272590,14.16634585,1254.7,1254.6,1.19093751]
[1672849273014,14.16634585,1254.7,1254.6,5.98372695]
[1672849273222,6.16434585,1254.7,1254.6,5.98372695]
[1672849273853,4.57034585,1254.7,1254.6,5.98372695]
[1672849275126,4.56934585,1254.8,1254.6,7.1588884]
[1672849275327,4.56934585,1254.8,1254.7,2.97649215]
[1672849275536,4.56934585,1254.8,1254.7,1.19059881]
[1672849275749,9.596,1254.8,1254.6,4.19789881]
[1672849275960,2.98484248,1254.7,1254.6,5.98379215]
[1672849276170,2.98484248,1254.7,1254.6,4.19789881]
[1672849276389,4.56884248,1254.7,1254.6,4.19335613]
[1672849276705,4.56884248,1254.7,1254.6,5.97924947]
[1672849277547,4.56884248,1254.7,1254.6,4.19335613]
[1672849278918,12.57084248,1254.7,1254.6,4.19335613]
[1672849280491,12.57084248,1254.7,1254.6,1.19059881]
[1672849280906,4.56884248,1254.7,1254.6,1.19059881]
[1672849282275,4.56884248,1254.7,1254.6,4.19789881]
[1672849282804,1.58,1254.7,1254.6,5.98379215]
[1672849283646,1.593,1254.7,1254.6,4.19789881]
[1672849283856,4.57784248,1254.7,1254.6,4.19789881]
[1672849285224,4.57784248,1254.7,1254.6,1.19059881]
[1672849285544,4.57784248,1254.7,1254.5,5.47649215]
[1672849288383,4.57784248,1254.7,1254.5,2.97649215]
[1672849288590,4.57784248,1254.7,1254.5,1.19059881]
[1672849288807,4.57784248,1254.7,1254.5,2.97649215]
[1672849289114,1.593,1254.7,1254.6,1.19059881]
[1672849289329,4.57784248,1254.7,1254.6,3.69059881]
[1672849289541,4.57784248,1254.7,1254.6,2.5]
[1672849289852,1.593,1254.7,1254.6,3.69059881]
[1672849290267,1.593,1254.7,1254.6,6.69789881]
[1672849291005,1.593,1254.7,1254.6,8.48379215]
[1672849291425,1.593,1254.7,1254.6,7.29319334]
[1672849291745,1.593,1254.7,1254.6,8.48337958]
[1672849291950,1.593,1254.7,1254.6,7.29319334]
[1672849292476,1.593,1254.7,1254.6,8.48349003]
[1672849292689,1.593,1254.7,1254.6,7.29319334]
[1672849293006,1.593,1254.8,1254.6,7.29319334]
[1672849293216,1.593,1254.8,1254.7,1.19016385]
[1672849293626,2.9845649,1254.9,1254.7,3.36489334]
[1672849293835,2.9845649,1254.9,1254.8,4.19719695]
[1672849294050,2.9845649,1254.9,1254.8,4.79319334]
[1672849294260,2.9845649,1254.9,1254.8,7.29319334]
[1672849294467,2.9845649,1254.9,1254.8,7.87299506]
[1672849295105,2.9845649,1254.9,1254.8,9.65697298]
[1672849295315,2.9845649,1254.9,1254.8,9.2854816]
[1672849295527,2.9845649,1254.9,1254.8,9.29808226]
[1672849296258,2.9845649,1254.9,1254.8,7.88559572]
[1672849296469,2.9845649,1254.9,1254.8,9.2980587]
[1672849296682,2.9845649,1254.9,1254.8,7.88559572]
[1672849296894,2.9845649,1254.9,1254.8,9.29805675]
[1672849298148,2.9845649,1254.9,1254.8,7.88559572]
[1672849298683,2.9845649,1254.9,1254.8,9.6684892]
[1672849299521,2.9845649,1254.9,1254.8,7.29019348]
[1672849300051,2.9845649,1254.9,1254.8,8.47902623]
[1672849300896,2.9845649,1254.9,1254.8,6.69613275]
[1672849301310,2.9845649,1254.9,1254.8,8.47902623]
[1672849301729,2.9845649,1254.9,1254.8,6.69613275]
[1672849302255,2.9845649,1254.9,1254.8,8.47902623]
[1672849302462,2.9845649,1254.9,1254.8,11.05859572]
[1672849302676,2.98484248,1255.2,1254.8,12.47102977]
[1672849302886,2.98484248,1255.2,1255.1,3.0073]
[1672849303102,2.98484248,1255.2,1255.1,3.5073]
[1672849303315,4.56384248,1255.2,1255.1,3.5073]
[1672849303729,1.579,1255.2,1255.1,3.0073]
[1672849303939,4.56384248,1255.2,1255.1,3.0073]
[1672849304148,1.579,1255.2,1255.1,3.0073]
[1672849304362,4.56384248,1255.2,1255.1,3.0073]
[1672849305199,1.579,1255.2,1255.1,3.0073]
[1672849305939,4.56384248,1255.2,1255.1,3.0073]
[1672849306140,1.579,1255.2,1255.1,3.0073]
[1672849306887,4.56384248,1255.2,1255.1,3.0073]
[1672849307091,1.579,1255.2,1255.1,3.0073]
[1672849308976,1.579,1255.2,1255.0,2.091]
[1672849308977,4.56384248,1255.2,1255.0,2.091]
[1672849309404,4.56384248,1255.2,1255.0,1.591]
[1672849309819,4.56384248,1255.2,1255.0,2.091]
[1672849310030,4.56384248,1255.2,1255.1,3.0073]
[1672849310772,4.56384248,1255.2,1255.0,2.091]
[1672849311083,4.56384248,1255.2,1255.0,1.591]
[1672849311292,4.56384248,1255.2,1255.0,2.091]
[1672849311499,2.98484248,1255.2,1255.0,0.5]
[1672849311703,2.98484248,1255.2,1254.9,4.5913]
[1672849311916,7.07984248,1255.3,1255.0,0.5]
[1672849312338,2.98484248,1255.2,1255.0,0.5]
[1672849312872,2.98484248,1255.2,1254.9,4.5913]
[1672849313713,4.57584248,1255.1,1254.9,3.0073]
[1672849314337,1.591,1255.1,1254.9,3.0073]
[1672849316752,1.591,1255.1,1254.9,4.19581375]
[1672849316971,1.591,1255.1,1254.9,3.0073]
[1672849318014,1.591,1255.1,1254.9,4.19581375]
[1672849321799,1.591,1255.1,1254.9,3.0073]
[1672849322964,1.591,1255.1,1254.9,4.19581375]
[1672849323814,1.591,1255.1,1254.9,5.97858438]
[1672849324330,1.591,1255.2,1255.0,1.18851375]
[1672849324541,1.591,1255.2,1255.1,3.0073]
[1672849326110,4.57584248,1255.2,1255.1,3.0073]
[1672849327278,4.57584248,1255.2,1254.9,7.57358438]
[1672849327490,4.57584248,1255.2,1254.9,5.79081375]
[1672849328013,2.98484248,1255.1,1254.9,7.57358438]
[1672849328537,2.98484248,1255.1,1254.9,5.79081375]
[1672849328745,1.595,1255.0,1254.9,1.18851375]
[1672849328955,1.595,1255.0,1254.8,1.18851375]
[1672849328956,1.59,1254.9,1254.8,1.18851375]
[1672849329159,3.183,1254.9,1254.7,5.97858438]
[1672849329372,4.084,1254.8,1254.7,5.97858438]
[1672849330005,4.084,1254.8,1254.7,4.79007063]
[1672849330223,4.084,1254.8,1254.7,5.97996738]
[1672849330424,4.084,1254.8,1254.7,5.97999668]
[1672849330628,4.084,1254.8,1254.7,4.19722605]
[1672849330844,4.084,1254.8,1254.7,5.97999668]
[1672849331268,4.084,1254.8,1254.7,4.19722605]
[1672849331906,5.678,1254.8,1254.7,4.19722605]
[1672849332212,8.65932098,1254.8,1254.7,5.97999668]
[1672849332423,8.65932098,1254.8,1254.7,1.18992605]
[1672849332637,16.66132098,1254.8,1254.6,2.97269668]
[1672849332950,2.98132098,1254.7,1254.6,2.97269668]
[1672849333157,2.98132098,1254.7,1254.5,3.79116392]
[1672849333158,4.56332098,1254.7,1254.5,2.97269668]
[1672849333377,3.192,1254.6,1254.5,1.18992605]
[1672849333687,6.17332098,1254.6,1254.4,2.97269668]
[1672849333895,1.588,1254.5,1254.4,1.18992605]
[1672849334942,6.16232098,1254.5,1254.3,1.18992605]
[1672849335151,1.586,1254.4,1254.2,5.47269668]
[1672849335367,2.5,1254.3,1254.2,5.47269668]
[1672849335580,2.5,1254.3,1254.2,5.47200059]
[1672849335782,2.5,1254.3,1254.2,4.28277063]
[1672849336203,2.5,1254.3,1254.2,5.47197878]
[1672849336413,2.5,1254.3,1254.2,4.28277063]
[1672849337154,1.586,1254.4,1254.2,8.47829989]
[1672849337470,1.595,1254.3,1254.2,8.47829989]
[1672849337680,1.595,1254.3,1254.2,6.69552926]
[1672849337889,1.595,1254.3,1254.2,8.47829989]
[1672849338623,1.595,1254.3,1254.2,5.97829989]
[1672849338834,1.595,1254.3,1254.2,4.19552926]
[1672849339884,1.596,1254.3,1254.2,5.97829989]
[1672849340202,4.082,1254.5,1254.2,8.06229989]
[1672849340405,4.082,1254.5,1254.2,7.56229989]
[1672849340616,4.082,1254.5,1254.2,5.77952926]
[1672849343140,4.082,1254.5,1254.2,4.5913]
[1672849344195,4.082,1254.5,1254.2,5.77952926]
[1672849344509,4.082,1254.5,1254.2,4.5913]
[1672849344706,4.082,1254.5,1254.3,0.5]
[1672849346082,4.082,1254.5,1254.2,5.77952926]
[1672849346399,4.082,1254.5,1254.3,0.5]
[1672849348704,12.084,1254.5,1254.2,1.584]
[1672849349124,4.082,1254.5,1254.2,4.5913]
[1672849349340,4.082,1254.5,1254.3,0.5]
[1672849352801,4.082,1254.5,1254.3,3.5073]
[1672849353433,1.582,1254.5,1254.3,3.5073]
[1672849354274,1.596,1254.5,1254.3,3.5073]
[1672849359107,1.596,1254.5,1254.2,2.084]
[1672849359523,1.596,1254.4,1254.1,8.29152926]
[1672849359731,1.596,1254.2,1254.1,3.0073]
[1672849359941,1.596,1254.2,1254.0,3.6219]
[1672849360363,2.5,1254.1,1254.0,3.6219]
[1672849360788,2.5,1254.1,1254.0,4.81012926]
[1672849361946,1.596,1254.2,1254.0,4.81012926]
[1672849362262,4.096,1254.2,1254.1,3.0073]
[1672849364259,4.096,1254.2,1254.0,2.31012926]
[1672849364469,4.096,1254.2,1254.0,1.1219]
[1672849364678,4.096,1254.2,1254.0,3.6219]
[1672849364888,4.096,1254.2,1254.0,1.1219]
[1672849365413,9.598,1254.1,1254.0,1.1219]
[1672849365627,11.194,1254.1,1254.0,1.1219]
[1672849366035,3.192,1254.1,1254.0,1.1219]
[1672849366460,1.596,1254.1,1254.0,1.1219]
[1672849366668,1.596,1254.1,1254.0,1.6219]
[1672849367415,1.596,1254.1,1254.0,2.81012926]
[1672849368561,1.596,1254.1,1254.0,1.1219]
[1672849370244,1.596,1254.1,1254.0,2.30302067]
[1672849373611,1.596,1254.1,1254.0,4.0857913]
[1672849374240,1.596,1254.1,1254.0,2.30302067]
[1672849374451,1.596,1254.1,1254.0,4.0857913]
[1672849375286,1.596,1254.1,1254.0,2.30302067]
[1672849375500,1.596,1254.1,1254.0,4.0857913]
[1672849375713,1.596,1254.1,1254.0,2.30302067]
[1672849376976,1.596,1254.1,1254.0,5.31032067]
[1672849377176,1.596,1254.1,1254.0,7.0930913]
[1672849377390,1.596,1254.1,1254.0,5.31032067]
[1672849378967,1.596,1254.1,1254.0,4.12209141]
[1672849379501,1.596,1254.1,1254.0,1.11479141]
[1672849381494,1.596,1254.1,1254.0,4.12209141]
[1672849382221,1.596,1254.1,1254.0,1.11479141]
[1672849382647,11.166,1254.1,1254.0,1.11479141]
[1672849383484,13.666,1254.1,1254.0,1.11479141]
[1672849384113,5.692,1254.1,1254.0,1.11479141]
[1672849385061,13.666,1254.1,1254.0,1.11479141]
[1672849387374,3.192,1254.1,1254.0,1.11479141]
[1672849388852,1.596,1254.1,1254.0,4.12209141]
[1672849390109,1.587,1254.2,1254.0,4.12209141]
[1672849390421,4.087,1254.2,1254.0,5.31032067]
[1672849390844,1.587,1254.2,1254.0,5.31032067]
[1672849391254,4.57732098,1254.3,1254.0,6.90632067]
[1672849391466,2.98132098,1254.3,1254.1,1.589]
[1672849391998,5.48132098,1254.3,1254.1,1.589]
[1672849392522,10.08162098,1254.4,1254.1,1.589]
[1672849392728,2.98132098,1254.3,1254.1,1.589]
[1672849392938,7.07432098,1254.4,1254.2,3.0073]
[1672849393149,4.57432098,1254.4,1254.2,3.0073]
[1672849393355,2.98132098,1254.4,1254.2,4.6033]
[1672849393566,2.98132098,1254.4,1254.2,5.79152926]
[1672849393780,2.98132098,1254.4,1254.2,4.6033]
[1672849393997,2.98132098,1254.4,1254.2,5.79152926]
[1672849394201,2.98132098,1254.4,1254.2,4.6033]
[1672849394414,7.06132098,1254.5,1254.2,5.79152926]
[1672849394634,2.98132098,1254.4,1254.2,5.79152926]
[1672849395995,2.98132098,1254.4,1254.2,7.57429989]
[1672849396409,4.08,1254.5,1254.2,7.57429989]
[1672849396410,4.56132098,1254.5,1254.2,7.57429989]
[1672849396725,4.56132098,1254.5,1254.4,3.0073]
[1672849396934,4.56132098,1254.5,1254.2,4.56699989]
[1672849396935,7.06169524,1254.5,1254.2,5.79152926]
[1672849397149,2.98169524,1254.4,1254.2,7.57429989]
[1672849397462,7.06169524,1254.5,1254.3,4.19552926]
[1672849398089,2.98169524,1254.4,1254.3,3.0073]
[1672849401466,4.56169524,1254.5,1254.3,4.19552926]
[1672849402721,2.98169524,1254.5,1254.3,5.78452926]
[1672849402933,2.98169524,1254.5,1254.3,7.56729989]
[1672849403248,2.98169524,1254.5,1254.4,2.5]
[1672849403978,2.98169524,1254.5,1254.3,5.78452926]
[1672849404188,2.98169524,1254.5,1254.4,2.5]
[1672849406083,2.98169524,1254.5,1254.3,4.5963]
[1672849408194,2.98169524,1254.5,1254.3,5.78452926]
[1672849412289,7.07469524,1254.6,1254.3,5.78452926]
[1672849412711,2.98169524,1254.5,1254.3,5.78452926]
[1672849412926,2.5,1254.4,1254.3,5.78452926]
[1672849414073,7.07469524,1254.6,1254.3,5.78452926]
[1672849414286,2.98169524,1254.5,1254.3,4.6033]
[1672849414493,2.5,1254.4,1254.3,4.6033]
[1672849415331,2.98169524,1254.5,1254.3,4.6033]
[1672849416495,2.5,1254.4,1254.3,4.6033]
[1672849419860,2.98169524,1254.5,1254.3,4.6033]
[1672849424168,2.98169524,1254.5,1254.3,4.5913]
[1672849424384,2.98169524,1254.5,1254.3,5.77952926]
[1672849425114,2.98169524,1254.5,1254.3,7.56229989]
[1672849425748,2.98169524,1254.5,1254.3,5.77952926]
[1672849426487,2.98169524,1254.5,1254.3,7.56229989]
[1672849428377,2.98169524,1254.5,1254.4,3.0073]
[1672849428580,7.65816168,1254.6,1254.4,3.0073]
[1672849429105,7.65816168,1254.6,1254.4,4.19552926]
[1672849429733,7.65816168,1254.6,1254.4,3.0073]
[1672849430583,7.65816168,1254.6,1254.4,4.19552926]
[1672849431950,7.65816168,1254.6,1254.4,3.0073]
[1672849432162,5.16716168,1254.5,1254.4,3.0073]
[1672849432895,5.16716168,1254.5,1254.3,2.97099989]
[1672849433102,5.16716168,1254.5,1254.3,1.18822926]
[1672849433312,9.33351698,1254.5,1254.3,1.18822926]
[1672849433739,3.57116168,1254.4,1254.3,1.18822926]
[1672849434266,9.33351698,1254.5,1254.3,2.97099989]
[1672849435002,9.33351698,1254.5,1254.3,1.18822926]
[1672849436159,3.57116168,1254.4,1254.3,1.18822926]
[1672849439310,9.33351698,1254.5,1254.3,1.18822926]
[1672849440150,3.57116168,1254.4,1254.3,1.18822926]
[1672849440787,3.57116168,1254.4,1254.2,7.57329989]
[1672849441095,2.98822881,1254.3,1254.2,7.57329989]
[1672849442151,2.98822881,1254.3,1254.2,7.56029989]
[1672849443830,1.595,1254.3,1254.2,1.18822926]
[1672849444244,5.16616168,1254.3,1254.1,2.97099989]
[1672849444457,1.595,1254.2,1254.1,2.97528779]
[1672849444664,4.58295789,1254.2,1254.1,2.97528779]
[1672849444981,7.08295789,1254.2,1254.1,1.19251716]
[1672849446138,7.08295789,1254.2,1254.1,2.97528779]
[1672849447077,7.08295789,1254.2,1254.1,1.19251716]
[1672849447810,13.656,1254.2,1254.0,2.89756204]
[1672849448023,4.58094854,1254.1,1254.0,1.11479141]
[1672849448442,4.58094854,1254.1,1254.0,2.89756204]
[1672849448877,4.58094854,1254.1,1254.0,1.11479141]
[1672849449603,4.58094854,1254.1,1254.0,5.90486204]
[1672849449604,1.595,1254.1,1254.0,5.90486204]
[1672849451284,1.595,1254.1,1254.0,4.12209141]
[1672849454023,1.595,1254.1,1254.0,1.11479141]
[1672849454330,4.58094854,1254.1,1254.0,1.11479141]
[1672849456438,6.17594854,1254.1,1254.0,1.11479141]
[1672849456858,8.67289567,1254.1,1254.0,1.11479141]
[1672849457275,1.1814,1254.0,1253.7,1.78277063]
[1672849457483,1.595,1253.7,1253.5,4.16106635]
[1672849457799,1.595,1253.6,1253.5,1.78277063]
[1672849458009,4.095,1253.6,1253.5,1.78277063]
[1672849458539,4.095,1253.6,1253.4,9.66836635]
[1672849458750,4.095,1253.6,1253.5,4.28277063]
[1672849459064,1.595,1253.6,1253.5,2.5]
[1672849459997,1.595,1253.7,1253.5,4.28277063]
[1672849460214,1.595,1253.7,1253.6,3.0073]
[1672849462843,1.595,1253.7,1253.5,2.5]
[1672849462844,3.187,1253.7,1253.4,7.29007063]
[1672849463155,1.591,1253.6,1253.4,5.5073]
[1672849464104,1.591,1253.6,1253.4,3.0073]
[1672849464105,1.585,1253.5,1253.4,3.0073]
[1672849464731,4.085,1253.5,1253.4,3.0073]
[1672849466630,1.585,1253.5,1253.4,3.0073]
[1672849471148,1.585,1253.5,1253.2,5.5073]
[1672849471359,1.595,1253.4,1253.2,5.5073]
[1672849474290,1.584,1253.5,1253.2,7.0893]
[1672849475551,1.584,1253.5,1253.2,8.87207063]
[1672849475761,1.584,1253.5,1253.4,3.0073]
[1672849478081,4.095,1253.8,1253.5,1.59]
[1672849478290,1.585,1253.9,1253.6,4.6023]
[1672849478709,2.5,1253.8,1253.7,0.5]
[1672849479882,2.5,1253.8,1253.6,4.6023]
[1672849481551,4.087,1253.8,1253.6,4.5903]
[1672849482401,4.087,1253.8,1253.6,3.0073]
[1672849482607,2.5,1253.8,1253.6,3.0073]
[1672849484181,4.097,1253.9,1253.6,3.0073]
[1672849484714,6.48272701,1253.9,1253.6,3.0073]
[1672849485342,2.5,1253.8,1253.6,3.0073]
[1672849488182,4.88572701,1253.8,1253.6,3.0073]
[1672849488388,2.5,1253.8,1253.6,3.0073]
[1672849488805,4.88572701,1253.8,1253.6,3.0073]
[1672849491026,7.86788577,1253.8,1253.6,3.0073]
[1672849492287,4.88572701,1253.8,1253.6,3.0073]
[1672849492915,13.35965284,1253.8,1253.6,2.6153]
[1672849493132,1.1814,1253.6,1253.2,4.69561451]
[1672849493335,5.36721419,1253.3,1253.0,1.74013363]
[1672849493642,2.5,1253.1,1252.9,2.5]
[1672849494068,5.39272853,1253.2,1252.9,2.5]
[1672849494277,1.597,1253.1,1252.9,2.5]
[1672849497647,3.38592676,1253.1,1252.9,2.5]
[1672849498693,5.77135529,1253.1,1252.9,2.5]
[1672849499117,3.0073,1253.0,1252.9,2.5]
[1672849499331,4.5933,1253.0,1252.9,2.5]
[1672849500690,4.5933,1253.0,1252.8,5.5073]
[1672849501851,3.191,1252.9,1252.6,16.91348088]
[1672849502061,1.597,1252.7,1252.5,5.96278088]
[1672849502274,1.597,1252.7,1252.5,3.0073]
[1672849502479,1.597,1252.7,1252.6,2.5]
[1672849502895,1.597,1252.8,1252.6,2.5]
[1672849503110,4.79622676,1253.0,1252.6,2.5]
[1672849503426,5.65960562,1253.1,1252.9,3.0073]
[1672849503742,5.5073,1253.2,1252.9,1.583]
[1672849503743,9.48972853,1253.2,1252.9,1.583]
[1672849503953,9.48972853,1253.2,1253.0,2.5]
[1672849508052,9.48972853,1253.2,1252.9,2.083]
[1672849508574,4.6043,1253.2,1252.9,2.083]
[1672849508992,4.6043,1253.2,1252.9,5.0903]
[1672849509522,1.597,1253.2,1252.9,5.0903]
[1672849509731,1.597,1253.2,1252.9,13.0643]
[1672849510772,1.597,1253.2,1252.9,5.0903]
[1672849512148,1.597,1253.2,1252.9,13.0643]
[1672849512671,1.597,1253.2,1252.9,10.057]
[1672849512890,1.597,1253.2,1252.9,2.083]
[1672849513202,1.597,1253.1,1252.9,0.5]
[1672849514771,1.597,1253.1,1252.9,3.5073]
[1672849516032,15.04478566,1253.5,1253.0,11.154]
[1672849516033,2.38542853,1253.5,1253.0,11.154]
[1672849516248,9.97151419,1253.6,1253.3,1.597]
[1672849516454,7.89272853,1253.6,1253.4,1.595]
[1672849516771,7.89272853,1253.6,1253.4,4.095]
[1672849517508,2.38542853,1253.5,1253.4,4.095]
[1672849517920,10.87451419,1253.6,1253.4,4.095]
[1672849518142,10.87451419,1253.6,1253.4,1.595]
[1672849518143,2.38542853,1253.5,1253.4,1.595]
[1672849518450,3.98242853,1253.5,1253.3,2.5]
[1672849518664,5.39272853,1253.4,1253.3,2.5]
[1672849519187,3.0073,1253.4,1253.2,2.5]
[1672849519406,5.39272853,1253.4,1253.2,2.5]
[1672849520661,3.0073,1253.4,1253.2,2.5]
[1672849521186,5.39272853,1253.4,1253.2,2.5]
[1672849522766,3.0073,1253.4,1253.2,2.5]
[1672849523083,5.39272853,1253.4,1253.2,2.5]
[1672849523711,3.0073,1253.4,1253.2,2.5]
[1672849524658,3.98242853,1253.5,1253.2,2.5]
[1672849525393,2.11415554,1253.5,1253.4,1.59]
[1672849525601,2.98178566,1253.6,1253.4,1.59]
[1672849526337,2.98178566,1253.7,1253.4,1.59]
[1672849526651,10.67546168,1253.8,1253.4,1.59]
[1672849526652,2.98178566,1253.8,1253.6,1.59]
[1672849527278,2.98178566,1253.8,1253.7,2.5]
[1672849528126,5.48178566,1253.9,1253.7,2.5]
[1672849528542,2.98178566,1253.8,1253.7,2.5]
[1672849528755,5.48178566,1253.9,1253.7,2.5]
[1672849528964,2.98178566,1253.8,1253.7,2.5]
[1672849530327,5.48178566,1253.9,1253.7,2.5]
[1672849531169,2.98178566,1253.8,1253.7,2.5]
[1672849534121,5.48178566,1253.9,1253.7,2.5]
[1672849535700,2.98178566,1253.9,1253.7,2.5]
[1672849537801,5.48178566,1253.9,1253.7,2.5]
[1672849538846,2.98178566,1253.9,1253.7,2.5]
[1672849540008,5.48178566,1253.9,1253.7,2.5]
[1672849540320,2.98178566,1253.9,1253.7,2.5]
[1672849541267,5.48178566,1253.9,1253.7,2.5]
[1672849541794,2.98178566,1253.9,1253.7,2.5]
[1672849543793,5.48178566,1253.9,1253.7,2.5]
[1672849544316,5.48178566,1253.9,1253.7,4.081]
[1672849545059,3.0073,1253.8,1253.7,1.581]
[1672849545258,5.98908566,1253.8,1253.6,2.097]
[1672849546631,7.57408566,1253.8,1253.5,10.071]
[1672849547045,5.98908566,1253.8,1253.5,8.474]
[1672849547256,7.57408566,1253.8,1253.5,2.097]
[1672849547470,2.98178566,1253.7,1253.5,2.097]
[1672849548726,3.0073,1253.6,1253.5,1.597]
[1672849549149,2.98178566,1253.7,1253.5,1.597]
[1672849550826,2.98178566,1253.7,1253.4,11.0183]
[1672849551040,2.98178566,1253.7,1253.5,1.597]
[1672849551251,2.98178566,1253.7,1253.6,0.5]
[1672849551778,2.98178566,1253.7,1253.5,1.597]
[1672849552929,3.0073,1253.6,1253.5,1.597]
[1672849553456,5.98908566,1253.6,1253.5,1.597]
[1672849559134,3.0073,1253.6,1253.5,1.597]
[1672849559342,5.99094485,1253.6,1253.5,1.597]
[1672849559552,3.0073,1253.6,1253.5,1.597]
[1672849559758,5.99093864,1253.6,1253.5,1.597]
[1672849559965,3.0073,1253.6,1253.4,2.1343]
[1672849560179,2.9837422,1253.5,1253.4,2.1343]
[1672849560810,2.98385164,1253.5,1253.4,2.1343]
[1672849562394,6.57846168,1253.6,1253.4,2.1343]
[1672849562915,10.74481698,1253.6,1253.4,2.1343]
[1672849563331,12.34181698,1253.6,1253.4,0.5443]
[1672849563543,3.57116168,1253.5,1253.4,0.5443]
[1672849565129,12.34181698,1253.6,1253.4,0.5443]
[1672849565333,3.57116168,1253.5,1253.4,0.5443]
[1672849566389,8.17546168,1253.6,1253.4,0.5443]
[1672849576058,3.184,1253.5,1253.4,0.5443]
[1672849576264,1.1814,1253.4,1253.1,1.1912872]
[1672849576481,3.98418469,1253.2,1253.0,3.6912872]
[1672849576797,3.98418469,1253.2,1253.0,2.5]
[1672849576798,7.89448469,1253.1,1253.0,2.5]
[1672849576992,7.89448469,1253.1,1252.9,7.07158473]
[1672849577205,1.7905391,1253.0,1252.9,5.2882872]
[1672849577417,4.17772379,1253.0,1252.9,5.2882872]
[1672849577628,1.7905391,1253.0,1252.9,5.2882872]
[1672849578259,2.38718469,1253.0,1252.9,2.7882872]
[1672849578471,4.17657605,1253.0,1252.8,5.2742872]
[1672849579098,1.78939136,1253.0,1252.8,7.05758473]
[1672849580578,1.78939136,1253.0,1252.9,2.081]
[1672849580778,7.18387605,1253.1,1252.9,11.2622872]
[1672849580984,7.18387605,1253.1,1253.0,1.592]
[1672849581936,4.79669136,1253.1,1253.0,1.592]
[1672849582362,7.18387605,1253.1,1253.0,1.592]
[1672849582568,4.79669136,1253.1,1253.0,1.592]
[1672849583096,1.78939136,1253.1,1253.0,1.592]
[1672849584468,4.17657605,1253.1,1253.0,1.592]
[1672849585407,1.78939136,1253.1,1253.0,1.592]
[1672849587301,4.17657605,1253.1,1253.0,1.592]
[1672849587506,2.38718469,1253.1,1253.0,1.592]
[1672849587723,2.38718469,1253.1,1252.9,2.083]
[1672849587934,4.79595808,1253.0,1252.9,2.083]
[1672849588247,7.18333922,1253.0,1252.9,2.083]
[1672849588459,7.1833165,1253.0,1252.9,2.083]
[1672849588666,4.79613181,1253.0,1252.9,2.083]
[1672849590352,5.39448469,1253.0,1252.9,0.5]
[1672849590553,7.18273355,1253.0,1252.9,0.5]
[1672849590760,4.79554886,1253.0,1252.9,0.5]
[1672849591510,7.18273355,1253.0,1252.8,4.097]
[1672849592141,4.79554886,1253.0,1252.8,4.097]
[1672849592352,7.18273355,1253.0,1252.8,5.2882872]
[1672849592668,4.79554886,1253.0,1252.8,5.2882872]
[1672849593191,4.79554886,1253.0,1252.8,4.097]
[1672849593395,4.79554886,1253.0,1252.8,5.2882872]
[1672849596246,4.79554886,1253.0,1252.8,7.07158473]
[1672849597297,1.78824886,1253.1,1252.9,2.7882872]
[1672849598452,4.17543355,1253.1,1252.9,2.7882872]
[1672849598653,1.78824886,1253.0,1252.9,2.7882872]
[1672849600654,4.79554886,1253.0,1252.9,2.7882872]
[1672849601499,4.79554886,1253.0,1252.9,1.597]
[1672849601703,4.79554886,1253.0,1252.9,2.7882872]
[1672849602339,4.79554886,1253.0,1252.9,1.597]
[1672849602765,7.18273355,1253.0,1252.9,1.597]
[1672849604128,4.79554886,1253.0,1252.9,2.7882872]
[1672849608335,7.18273355,1253.0,1252.9,2.7882872]
[1672849608539,4.79554886,1253.0,1252.9,2.7882872]
[1672849608968,7.18273355,1253.0,1252.9,2.7882872]
[1672849609389,4.79554886,1253.0,1252.9,2.7882872]
[1672849609701,7.18273355,1253.0,1252.9,2.7882872]
[1672849610335,5.39448469,1253.0,1252.9,2.7882872]
[1672849611058,8.37846556,1253.0,1252.9,2.7882872]
[1672849611270,5.39448469,1253.0,1252.9,2.7882872]
[1672849611586,8.37846556,1253.0,1252.9,1.1912872]
[1672849611800,8.37846556,1253.0,1252.8,7.07158473]
[1672849611801,5.99128087,1253.0,1252.8,7.07158473]
[1672849612009,4.18088671,1252.9,1252.8,7.07158473]
[1672849612630,2.38907812,1252.9,1252.8,15.04558473]
[1672849612844,2.38907812,1252.9,1252.8,13.85429753]
[1672849613900,2.38907812,1252.9,1252.8,15.04734651]
[1672849614214,2.38907812,1252.9,1252.8,13.85429753]
[1672849614444,2.38907812,1252.9,1252.8,5.47633868]
[1672849614632,5.37305899,1252.9,1252.8,5.87929753]
[1672849614841,2.38907812,1252.9,1252.8,8.25492683]
[1672849615686,2.38907812,1252.9,1252.8,8.26256251]
[1672849615891,5.37305899,1252.9,1252.8,8.26256251]
[1672849616107,2.38907812,1252.9,1252.8,8.26256251]
[1672849616313,2.38907812,1252.9,1252.8,7.88645225]
[1672849617371,2.38907812,1252.9,1252.8,7.8864282]
[1672849617582,5.37305899,1252.9,1252.8,6.4716293]
[1672849618001,5.37305899,1252.9,1252.8,4.8756293]
[1672849618215,5.37305899,1252.9,1252.8,6.4566293]
[1672849618642,2.38907812,1252.9,1252.8,6.4566293]
[1672849618850,2.38907812,1252.9,1252.8,7.87145346]
[1672849619062,2.38907812,1252.9,1252.8,6.4566293]
[1672849619271,2.38907812,1252.9,1252.8,7.87145328]
[1672849619484,2.38907812,1252.9,1252.8,6.4566293]
[1672849619689,2.38907812,1252.9,1252.8,7.8714515]
[1672849620108,2.38907812,1252.9,1252.8,7.8714457]
[1672849620429,2.38907812,1252.9,1252.8,15.8614457]
[1672849620636,3.92808132,1252.9,1252.8,23.42122658]
[1672849620845,3.92808132,1252.9,1252.8,21.04559728]
[1672849621057,1.79442085,1252.9,1252.8,21.04559728]
[1672849621584,1.79443516,1252.9,1252.8,18.03829728]